bitfinex/quotes_SOLUSD_20240918
["timestamp","ask_amount","ask_price","bid_price","bid_amount"]
[1726628638571,0.49402,132.07,131.98,15.0154]
[1726628638774,0.49402,132.07,132.01,12.48055369]
[1726628639801,20.49402,132.07,132.01,12.48055369]
[1726628640102,0.49402,132.07,132.01,12.48055369]
[1726628640497,8.06592,132.07,132.0,12.48055369]
[1726628640700,8.06592,132.07,131.99,36.50841769]
[1726628642996,8.06592,132.07,132.0,12.48055369]
[1726628643391,0.49402,132.07,132.02,12.48055369]
[1726628643696,0.49402,132.07,132.03,12.48055369]
[1726628644910,0.49402,132.07,132.01,1.64018133]
[1726628644911,0.49402,132.07,132.02,12.48055369]
[1726628648791,0.49402,132.07,132.06,12.48055369]
[1726628649010,0.49402,132.07,132.05,12.48055369]
[1726628652414,0.49402,132.07,132.06,12.48055369]
[1726628653414,0.49402,132.07,132.05,12.48055369]
[1726628655117,0.2567944,132.11,132.05,12.48055369]
[1726628655118,0.14493739,132.11,132.05,12.48055369]
[1726628656814,0.14493739,132.11,132.03,0.12549]
[1726628656815,15.7487,132.09,132.03,12.48055369]
[1726628657217,15.7487,132.09,132.04,12.48055369]
[1726628657421,15.7487,132.09,132.05,12.48055369]
[1726628658990,15.7487,132.09,132.06,12.48055369]
[1726628659192,6.1133,132.1,132.06,12.48055369]
[1726628659393,0.14493739,132.11,132.08,12.48055369]
[1726628659695,0.14493739,132.11,132.07,12.48055369]
[1726628660510,0.14493739,132.11,132.05,25.41661291]
[1726628660511,0.14493739,132.11,132.08,12.48055369]
[1726628660816,0.14493739,132.11,132.1,12.48055369]
[1726628661393,0.14493739,132.11,132.07,21.9212]
[1726628661394,0.49402,132.15,132.11,0.12549]
[1726628661599,0.49402,132.15,132.13,12.48055369]
[1726628661917,0.49402,132.15,132.11,12.60604369]
[1726628662296,0.49402,132.15,132.14,12.48055369]
[1726628662503,0.49402,132.15,132.13,12.48055369]
[1726628662819,0.49402,132.15,132.11,0.12549]
[1726628662991,0.49402,132.15,132.11,12.60604369]
[1726628663199,0.49402,132.15,132.14,12.48055369]
[1726628664397,0.49402,132.15,132.13,12.48055369]
[1726628665408,0.49402,132.15,132.14,12.48055369]
[1726628665609,0.49402,132.15,132.14,12.60604369]
[1726628666128,0.49402,132.15,132.14,23.902374]
[1726628666416,0.49402,132.15,132.08,9.24440093]
[1726628666737,0.49402,132.15,132.07,21.9212]
[1726628667024,0.49402,132.15,132.09,12.48055369]
[1726628667228,0.49402,132.15,132.11,12.48055369]
[1726628668695,0.49402,132.15,132.1,12.60604369]
[1726628668894,0.49402,132.15,132.11,23.776884]
[1726628669308,0.49402,132.15,132.11,36.25743769]
[1726628670518,0.49402,132.15,132.12,12.48055369]
[1726628671425,0.49402,132.15,132.13,12.48055369]
[1726628671923,0.49402,132.15,132.14,37.77086064]
[1726628672121,0.49402,132.15,132.14,36.25743769]
[1726628672722,0.49402,132.15,132.14,36.38292769]
[1726628674213,0.49402,132.15,132.0,9.37201718]
[1726628674214,10.0,132.11,132.0,9.37201718]
[1726628674423,7.5728,132.06,132.01,16.0054944]
[1726628674623,23.902374,132.09,132.01,16.0054944]
[1726628674812,23.902374,132.09,132.01,1.77164925]
[1726628674813,21.29804586,132.08,132.01,1.77164925]
[1726628675132,7.5715,132.08,132.02,12.48055369]
[1726628675305,27.5706,132.09,132.02,12.48055369]
[1726628675514,7.5719,132.07,132.01,0.2567944]
[1726628675711,1.51330708,132.06,132.01,0.2567944]
[1726628676016,27.571,132.09,132.01,0.2567944]
[1726628676825,21.51330708,132.09,132.01,0.2567944]
[1726628677308,29.08440708,132.09,132.01,0.2567944]
[1726628678226,27.5711,132.09,132.01,0.2567944]
[1726628678933,29.08440708,132.09,132.01,0.2567944]
[1726628679232,27.5711,132.09,132.01,0.2567944]
[1726628679602,9.08440708,132.08,132.01,0.2567944]
[1726628679802,1.51330708,132.07,132.01,0.2567944]
[1726628680019,7.5711,132.08,132.01,0.2567944]
[1726628680328,27.5706,132.09,132.02,0.12549]
[1726628680510,1.51330708,132.08,132.02,0.12549]
[1726628680708,16.4107,132.1,132.02,0.25098]
[1726628681505,23.9807,132.1,132.02,0.25098]
[1726628683526,7.57,132.1,132.02,0.25098]
[1726628684538,20.0,132.13,132.03,23.776884]
[1726628684714,20.0,132.13,132.04,0.25098]
[1726628685425,7.5689,132.12,132.04,0.25098]
[1726628686836,9.08220708,132.12,132.04,0.25098]
[1726628687431,27.5683,132.13,132.04,19.55911282]
[1726628687908,27.5683,132.13,132.06,0.25098]
[1726628689136,0.49402,132.15,132.08,0.12549]
[1726628689519,8.06122,132.15,132.08,0.12549]
[1726628689720,8.06122,132.15,132.08,0.25098]
[1726628689933,0.49402,132.15,132.08,0.25098]
[1726628690243,1.51330708,132.14,132.08,0.25098]
[1726628690532,9.08110708,132.14,132.08,0.12549]
[1726628690715,7.5678,132.14,132.08,0.12549]
[1726628690919,9.08110708,132.14,132.08,0.12549]
[1726628692724,7.5678,132.14,132.08,0.12549]
[1726628692919,20.49402,132.15,132.08,0.25098]
[1726628693443,28.06122,132.15,132.08,0.25098]
[1726628693741,29.57452708,132.15,132.08,0.25098]
[1726628694249,2.00732708,132.15,132.08,0.25098]
[1726628694434,2.00732708,132.15,132.1,0.12549]
[1726628694435,0.49402,132.15,132.1,0.12549]
[1726628697127,0.49402,132.15,132.1,1.76473937]
[1726628697337,0.49402,132.15,132.12,6.76908]
[1726628697856,0.49402,132.15,132.12,8.28245834]
[1726628698217,0.49402,132.15,132.12,6.76908]
[1726628698449,0.2567944,132.19,132.16,0.25098]
[1726628698618,0.49402,132.23,132.19,0.12549]
[1726628698957,0.49402,132.23,132.19,24.027864]
[1726628699648,0.49402,132.23,132.21,0.12549]
[1726628699832,0.49402,132.23,132.21,43.33599682]
[1726628700023,258.99402,132.3,132.21,43.33599682]
[1726628700024,258.5,132.3,132.21,43.33599682]
[1726628700236,0.3873136,132.23,132.21,0.25098]
[1726628700617,0.3873136,132.23,132.18,6.0628]
[1726628700834,0.3873136,132.23,132.21,0.25098]
[1726628701247,0.3873136,132.23,132.22,19.43362282]
[1726628701432,0.3873136,132.23,132.22,0.25098]
[1726628701949,0.3873136,132.23,132.21,24.027864]
[1726628702245,0.3873136,132.23,132.22,24.027864]
[1726628702460,0.3873136,132.23,132.22,0.25098]
[1726628703640,0.3873136,132.23,132.21,23.776884]
[1726628703843,0.3873136,132.23,132.18,25.37093282]
[1726628703844,0.3873136,132.23,132.18,6.0628]
[1726628704042,0.3873136,132.23,132.18,25.37093282]
[1726628705023,0.3873136,132.23,132.2,0.25098]
[1726628705226,0.3873136,132.23,132.2,0.12549]
[1726628705764,0.3873136,132.23,132.19,0.12549]
[1726628706523,0.3873136,132.23,132.19,24.027864]
[1726628707652,0.3873136,132.23,132.18,6.0628]
[1726628708850,0.3873136,132.23,132.19,0.12549]
[1726628709053,0.3873136,132.23,132.15,15.8185]
[1726628709232,0.3873136,132.23,132.16,0.12549]
[1726628709654,0.3873136,132.23,132.14,6.1459]
[1726628709853,0.3873136,132.23,132.15,19.30813282]
[1726628710231,0.3873136,132.23,132.16,0.12549]
[1726628710436,0.3873136,132.23,132.16,23.902374]
[1726628710635,1.90062068,132.23,132.16,23.902374]
[1726628711058,1.90062068,132.23,132.17,0.12549]
[1726628711445,9.46322068,132.23,132.14,6.1459]
[1726628711659,27.5632,132.22,132.14,6.1459]
[1726628711852,1.51330708,132.21,132.14,6.1459]
[1726628712164,21.51330708,132.2,132.11,41.75263282]
[1726628712531,1.51330708,132.19,132.11,6.1459]
[1726628712726,20.0,132.2,132.09,19.30813282]
[1726628713361,15.1867,132.21,132.13,19.30813282]
[1726628713734,22.7505,132.21,132.11,19.30813282]
[1726628713933,15.1867,132.21,132.1,20.1352528]
[1726628714234,7.5643,132.2,132.1,20.1352528]
[1726628714546,20.0,132.22,132.13,19.30813282]
[1726628714740,20.0,132.22,132.1,20.1352528]
[1726628714741,0.3873136,132.23,132.17,19.30813282]
[1726628714957,0.3873136,132.23,132.18,1.51273535]
[1726628715143,0.3873136,132.23,132.18,23.902374]
[1726628715458,0.3873136,132.23,132.18,0.12549]
[1726628715662,0.3873136,132.23,132.18,0.25098]
[1726628716662,0.3873136,132.23,132.14,0.25098]
[1726628717356,1.90062068,132.23,132.14,0.12549]
[1726628717653,1.90062068,132.23,132.13,25.57023282]
[1726628718240,20.0,132.21,132.13,25.57023282]
[1726628718752,20.0,132.21,132.13,6.2621]
[1726628719853,20.3873136,132.23,132.14,24.027864]
[1726628720054,0.3873136,132.23,132.14,24.027864]
[1726628720258,7.9499136,132.23,132.14,24.027864]
[1726628720438,21.51330708,132.22,132.14,24.027864]
[1726628720845,20.0,132.22,132.14,24.027864]
[1726628721636,1.51330708,132.21,132.14,24.027864]
[1726628722064,20.0,132.22,132.14,24.027864]
[1726628722361,1.01330708,132.21,132.14,24.027864]
[1726628722542,1.01330708,132.2,132.14,24.027864]
[1726628722743,8.57700708,132.21,132.11,19.30813282]
[1726628722954,6.5896,132.2,132.11,19.30813282]
[1726628723873,15.16710708,132.2,132.11,19.30813282]
[1726628724245,14.1538,132.2,132.12,24.027864]
[1726628724668,28.57810708,132.19,132.12,24.027864]
[1726628725148,27.5648,132.19,132.12,24.027864]
[1726628725367,6.5896,132.2,132.12,24.027864]
[1726628726081,14.1539,132.2,132.12,24.027864]
[1726628727075,6.5896,132.2,132.12,24.027864]
[1726628727249,6.5896,132.2,132.14,0.12549]
[1726628727575,6.5896,132.2,132.14,24.027864]
[1726628728575,27.5631,132.22,132.14,24.027864]
[1726628729081,20.3873136,132.23,132.14,24.027864]
[1726628729365,27.9499136,132.23,132.14,24.027864]
[1726628729579,27.9504136,132.23,132.14,24.027864]
[1726628729959,7.5631,132.22,132.14,24.027864]
[1726628730163,1.01330708,132.21,132.14,24.027864]
[1726628730368,0.3873136,132.22,132.14,24.027864]
[1726628731380,1.01330708,132.21,132.14,0.25098]
[1726628731571,0.3873136,132.22,132.14,0.25098]
[1726628731771,7.9505136,132.22,132.13,24.027864]
[1726628731959,20.0,132.21,132.13,0.25098]
[1726628733481,7.5637,132.21,132.13,0.25098]
[1726628734374,7.5643,132.2,132.13,0.25098]
[1726628734577,0.3873136,132.22,132.13,0.25098]
[1726628734578,1.01330708,132.19,132.13,0.25098]
[1726628734760,8.57810708,132.19,132.13,0.25098]
[1726628734961,8.57810708,132.19,132.13,0.12549]
[1726628735571,1.01330708,132.18,132.13,0.12549]
[1726628735781,7.5648,132.19,132.13,0.12549]
[1726628737484,27.5637,132.21,132.12,24.027864]
[1726628737659,27.5637,132.21,132.12,0.25098]
[1726628738971,1.01330708,132.2,132.12,0.25098]
[1726628740275,7.565,132.19,132.12,0.25098]
[1726628740475,1.01330708,132.18,132.12,0.25098]
[1726628740779,1.01330708,132.17,132.12,0.12549]
[1726628741082,1.01330708,132.17,132.1,0.1352528]
[1726628741083,8.57930708,132.17,132.1,0.1352528]
[1726628741654,7.5666,132.16,132.1,0.1352528]
[1726628741883,1.01330708,132.15,132.1,0.1352528]
[1726628742081,1.01330708,132.14,132.1,0.1352528]
[1726628742672,1.01330708,132.15,132.1,0.1352528]
[1726628742855,1.01330708,132.14,132.1,0.1352528]
[1726628743555,7.5673,132.15,132.1,0.1352528]
[1726628743763,26.596,132.18,132.1,0.1352528]
[1726628743986,20.0,132.16,132.1,0.1352528]
[1726628744362,1.01330708,132.15,132.1,0.1352528]
[1726628744561,27.5667,132.16,132.1,0.1352528]
[1726628744879,7.5677,132.14,132.1,0.1352528]
[1726628745091,1.01330708,132.13,132.1,0.1352528]
[1726628745256,7.5677,132.14,132.1,0.1352528]
[1726628746969,1.01330708,132.13,132.1,0.1352528]
[1726628747287,27.5694,132.11,132.1,0.1352528]
[1726628747492,28.58270708,132.11,132.1,0.1352528]
[1726628752588,7.5712,132.08,132.06,0.2853408]
[1726628752787,1.01330708,132.07,132.06,0.2853408]
[1726628753087,21.01330708,132.07,132.06,0.2853408]
[1726628753396,28.58500708,132.07,132.06,0.2853408]
[1726628753881,68.81139108,132.07,132.06,0.2853408]
[1726628754592,69.06237108,132.07,132.06,0.2853408]
[1726628754890,68.049064,132.07,132.06,0.2853408]
[1726628755090,31.600664,132.06,132.02,0.2853408]
[1726628755285,20.0,132.05,132.02,0.2853408]
[1726628755473,23.776884,132.04,132.02,0.2853408]
[1726628756401,31.350284,132.04,132.02,0.2853408]
[1726628756898,23.776884,132.04,132.02,0.2853408]
[1726628758071,27.5729,132.05,132.02,0.2853408]
[1726628759499,20.0,132.06,132.02,0.2853408]
[1726628760303,16.4495,132.07,132.02,0.2853408]
[1726628760698,8.58580708,132.06,132.02,0.2853408]
[1726628761486,20.0,132.05,132.02,0.2853408]
[1726628761688,20.0,132.05,132.02,0.1620264]
[1726628762089,20.0,132.06,132.02,0.1620264]
[1726628762685,27.5724,132.06,132.02,0.1620264]
[1726628764916,20.0,132.06,132.02,0.1620264]
[1726628765090,6.6023,132.1,132.02,0.1620264]
[1726628765091,27.5711,132.09,132.02,0.1620264]
[1726628765292,20.0,132.07,132.02,0.1620264]
[1726628766110,20.0,132.08,132.02,0.1620264]
[1726628768204,20.0,132.08,132.02,22.5079264]
[1726628768399,20.0,132.1,132.02,22.5079264]
[1726628769188,21.69036,132.14,132.03,1.64013196]
[1726628769507,7.5683,132.13,132.03,43.33599682]
[1726628769713,1.01330708,132.12,132.03,0.25098]
[1726628770005,7.5685,132.13,132.03,24.027864]
[1726628770387,7.5685,132.13,132.04,1.51438818]
[1726628770581,0.09436,132.14,132.06,0.12549]
[1726628770790,20.09436,132.14,132.03,43.33599682]
[1726628771279,7.5684,132.13,132.03,43.33599682]
[1726628771481,1.01330708,132.13,132.03,43.33599682]
[1726628771789,20.0,132.12,132.03,43.33599682]
[1726628775400,8.58290708,132.11,132.03,0.12549]
[1726628775611,20.34534,132.14,132.03,0.12549]
[1726628775918,7.5695,132.11,132.03,0.12549]
[1726628776123,8.58280708,132.11,132.03,0.12549]
[1726628776428,23.776884,132.08,132.02,22.5079264]
[1726628776733,20.0,132.09,132.02,22.5079264]
[1726628776734,27.571,132.09,132.02,22.5079264]
[1726628777427,1.01330708,132.08,132.02,22.5079264]
[1726628777604,1.01330708,132.07,132.02,22.5079264]
[1726628777802,7.5713,132.08,132.02,22.5079264]
[1726628779005,7.5717,132.07,132.02,22.5079264]
[1726628779203,27.69669,132.08,132.02,22.5079264]
[1726628780398,27.5712,132.08,132.02,22.5079264]
[1726628786324,7.5717,132.07,132.02,22.5079264]
[1726628788423,20.0,132.08,132.02,22.5079264]
[1726628789924,27.5711,132.08,132.02,22.5079264]
[1726628790317,8.58440708,132.08,132.02,22.5079264]
[1726628790514,7.5711,132.08,132.02,22.5079264]
[1726628794815,20.0,132.08,132.02,22.5079264]
[1726628797434,20.0,132.09,132.02,22.5079264]
[1726628798178,20.0,132.09,132.02,34.86532337]
[1726628798451,21.01330708,132.1,132.02,22.5079264]
[1726628798627,28.58340708,132.1,132.02,22.5079264]
[1726628799040,32.36089108,132.09,132.02,22.5079264]
[1726628799430,31.347584,132.09,132.02,22.5079264]
[1726628801039,27.5714,132.08,132.02,22.5079264]
[1726628801441,20.0,132.08,132.02,22.5079264]
[1726628804761,7.5695,132.11,132.03,12.35739697]
[1726628805048,7.5683,132.13,132.07,21.5799]
[1726628806023,0.09436,132.14,132.07,21.5799]
[1726628806024,7.66216,132.14,132.07,21.5799]
[1726628806224,20.0,132.13,132.07,21.5799]
[1726628806643,7.5683,132.13,132.07,21.5799]
[1726628807057,20.0,132.12,132.07,21.5799]
[1726628807355,27.5689,132.12,132.07,21.5799]
[1726628807541,1.01330708,132.11,132.07,21.5799]
[1726628808557,27.5689,132.12,132.07,21.5799]
[1726628810330,1.01330708,132.11,132.07,21.5799]
[1726628811129,0.09436,132.14,132.07,21.5799]
[1726628811333,43.902374,132.13,132.07,21.5799]
[1726628811828,1.01330708,132.12,132.07,21.5799]
[1726628812856,43.902374,132.13,132.07,21.5799]
[1726628813258,7.5696,132.11,132.07,21.5799]
[1726628813943,20.0,132.11,132.07,21.5799]
[1726628816232,1.01330708,132.1,132.07,21.5799]
[1726628816732,8.58340708,132.1,132.04,22.5836264]
[1726628819451,20.0,132.09,132.04,22.5836264]
[1726628819974,1.01330708,132.08,132.04,22.5836264]
[1726628820151,7.5707,132.09,132.04,22.5836264]
[1726628820338,20.0,132.08,132.04,22.5836264]
[1726628822473,7.5692,132.12,132.05,12.35739697]
[1726628822643,268.59436,132.14,132.05,12.48288697]
[1726628822644,276.16256,132.14,132.05,12.48288697]
[1726628822967,7.66256,132.14,132.06,12.35739697]
[1726628823365,7.66256,132.14,132.05,12.48288697]
[1726628823541,8.58160708,132.13,132.05,12.48288697]
[1726628823739,7.5683,132.13,132.05,12.48288697]
[1726628823972,20.0,132.12,132.05,12.48288697]
[1726628824675,20.0,132.12,132.05,0.12549]
[1726628825165,1.01330708,132.11,132.04,22.5836264]
[1726628825347,1.01330708,132.1,132.04,22.5836264]
[1726628825670,8.58340708,132.1,132.04,22.5836264]
[1726628825870,20.0,132.07,132.04,22.5836264]
[1726628826465,20.0,132.08,132.04,22.5836264]
[1726628827567,20.0,132.09,132.04,22.5836264]
[1726628827768,7.5701,132.1,132.04,22.5836264]
[1726628828070,20.0,132.09,132.04,22.5836264]
[1726628835477,1.01330708,132.08,132.04,22.5836264]
[1726628835770,20.0,132.09,132.04,22.5836264]
[1726628837056,18.9215,132.13,132.04,22.5836264]
[1726628837057,8.58450708,132.08,132.04,22.5836264]
[1726628837250,8.58500708,132.07,132.04,22.5836264]
[1726628838381,7.5717,132.07,132.04,22.5836264]
[1726628839975,20.0,132.07,132.04,22.5836264]
[1726628840348,1.01330708,132.06,132.04,0.1620264]
[1726628840674,7.5719,132.07,132.04,0.1620264]
[1726628844062,32.36259108,132.06,132.04,0.1620264]
[1726628844262,31.349284,132.06,132.04,0.1620264]
[1726628846266,43.776884,132.05,132.04,0.1620264]
[1726628846569,51.349684,132.05,132.04,0.1620264]
[1726628846767,287.86364189,132.12,132.04,0.1620264]
[1726628846966,7.5699,132.11,132.04,0.1620264]
[1726628847976,20.0,132.1,132.04,0.1620264]
[1726628848369,23.776884,132.09,132.04,0.1620264]
[1726628848576,20.0,132.08,132.04,0.1620264]
[1726628853382,23.776884,132.09,132.04,0.1620264]
[1726628853695,23.776884,132.1,132.05,21.715]
[1726628854591,32.36019108,132.1,132.05,21.715]
[1726628854988,20.0,132.09,132.05,21.715]
[1726628855167,1.01330708,132.08,132.05,21.715]
[1726628855368,1.01330708,132.07,132.05,21.715]
[1726628855568,1.01330708,132.08,132.05,21.715]
[1726628855881,1.01330708,132.07,132.04,0.1620264]
[1726628856186,7.5712,132.08,132.04,0.1620264]
[1726628856576,8.58450708,132.08,132.04,0.1620264]
[1726628856781,23.776884,132.07,132.04,0.1620264]
[1726628857180,31.348584,132.07,132.04,0.1620264]
[1726628857372,32.36189108,132.07,132.04,0.1620264]
[1726628857571,31.348584,132.07,132.04,0.1620264]
[1726628857777,23.776884,132.05,132.04,0.1620264]
[1726628858581,20.0,132.06,132.04,0.1620264]
[1726628858792,43.776884,132.07,132.04,0.1620264]
[1726628859595,20.0,132.07,132.04,0.1620264]
[1726628859778,20.0,132.08,132.04,0.1620264]
[1726628860095,1.01330708,132.07,132.04,0.1620264]
[1726628860892,20.0,132.08,132.04,0.1620264]
[1726628861598,1.01330708,132.07,132.04,0.1620264]
[1726628862083,27.5713,132.08,132.04,0.1620264]
[1726628864274,8.58500708,132.07,132.04,0.1620264]
[1726628864569,31.349284,132.06,132.04,0.1620264]
[1726628867281,7.5717,132.07,132.04,0.1620264]
[1726628867483,20.0,132.06,132.04,0.1620264]
[1726628868607,21.01330708,132.06,132.04,0.1620264]
[1726628868781,20.0,132.07,132.04,0.1620264]
[1726628871685,27.5701,132.1,132.04,0.1620264]
[1726628871888,28.58340708,132.1,132.04,0.1620264]
[1726628872503,7.5708,132.09,132.04,0.1620264]
[1726628872703,1.01330708,132.08,132.04,0.1620264]
[1726628873015,1.01330708,132.07,132.04,0.1620264]
[1726628873414,8.58410708,132.09,132.04,0.1620264]
[1726628875821,31.348284,132.08,132.04,0.1620264]
[1726628876043,1.01330708,132.07,132.04,0.1620264]
[1726628876522,31.348284,132.08,132.04,0.1620264]
[1726628878418,31.347584,132.09,132.04,0.1620264]
[1726628878610,20.0,132.08,132.04,0.1620264]
[1726628879716,7.57,132.1,132.04,0.1620264]
[1726628880021,20.0,132.09,132.04,0.1620264]
[1726628880702,1.01330708,132.08,132.04,0.1620264]
[1726628881024,1.01330708,132.07,132.04,0.1620264]
[1726628881614,7.5713,132.08,132.04,0.1620264]
[1726628881821,1.01330708,132.07,132.04,0.1620264]
[1726628882034,23.776884,132.06,132.04,0.1620264]
[1726628882825,1.01330708,132.05,132.04,0.1620264]
[1726628883114,32.36299108,132.05,132.04,0.1620264]
[1726628883316,52.36299108,132.05,132.04,0.1620264]
[1726628883710,51.349684,132.05,132.04,0.1620264]
[1726628884821,34.1587,132.09,132.04,0.1620264]
[1726628885129,20.0,132.06,132.04,0.1620264]
[1726628885897,1.01330708,132.05,132.04,0.1620264]
[1726628886232,24.79019108,132.05,132.04,0.1620264]
[1726628886400,52.36299108,132.05,132.04,0.1620264]
[1726628886935,51.349684,132.05,132.04,0.1620264]
[1726628887609,43.776884,132.05,132.04,0.1620264]
[1726628892433,51.349684,132.05,132.04,0.1620264]
[1726628896705,43.776884,132.05,132.04,0.1620264]
[1726628900108,20.0,132.05,132.04,0.1620264]
[1726628901115,7.5712,132.08,132.04,0.1620264]
[1726628901415,8.58520708,132.07,132.04,0.1620264]
[1726628901724,7.5719,132.07,132.04,0.1620264]
[1726628902119,7.5723,132.06,132.04,0.1620264]
[1726628903333,7.5718,132.07,132.04,0.1620264]
[1726628903534,43.776884,132.06,132.04,0.1620264]
[1726628905033,20.0,132.07,132.04,0.1620264]
[1726628905935,7.5718,132.07,132.04,0.1620264]
[1726628916143,20.0,132.1,132.04,0.1620264]
[1726628916320,20.0,132.11,132.04,15.3361264]
[1726628917424,7.5707,132.09,132.04,15.3361264]
[1726628919449,8.58460708,132.08,132.04,15.3361264]
[1726628919846,1.01330708,132.07,132.04,15.3361264]
[1726628921353,7.5713,132.08,132.04,15.3361264]
[1726628923136,23.776884,132.08,132.04,15.3361264]
[1726628937432,27.5707,132.09,132.04,15.3361264]
[1726628937758,20.0,132.09,132.04,15.3361264]
[1726628938349,7.5706,132.09,132.04,15.3361264]
[1726628939443,1.01330708,132.08,132.04,15.3361264]
[1726628939849,7.5706,132.09,132.04,15.3361264]
[1726628941163,1.01330708,132.08,132.04,15.3361264]
[1726628941338,7.5706,132.09,132.04,15.3361264]
[1726628943260,39.14844189,132.13,132.05,18.94749697]
[1726628943261,16.2548,132.13,132.05,18.94749697]
[1726628943459,20.0,132.11,132.05,18.94749697]
[1726628943756,7.5683,132.13,132.06,12.35739697]
[1726628943937,7.5683,132.13,132.07,12.35739697]
[1726628944440,0.09436,132.14,132.09,6.5901]
[1726628945958,23.871244,132.14,132.09,6.5901]
[1726628946130,0.09436,132.14,132.09,6.5901]
[1726628946452,0.09436,132.14,132.09,18.94749697]
[1726628947249,0.09436,132.14,132.09,6.5901]
[1726628953162,0.09436,132.14,132.09,18.94749697]
[1726628954160,0.09436,132.14,132.12,12.35739697]
[1726628954361,0.09436,132.14,132.13,34.98469697]
[1726628954764,0.09436,132.14,132.13,22.6273]
[1726628958867,0.09436,132.14,132.1,15.1409]
[1726628959071,1.10766708,132.14,132.1,15.1409]
[1726628960066,0.09436,132.14,132.1,15.1409]
[1726628963765,0.09436,132.14,132.1,27.49829697]
[1726628967584,0.09436,132.14,132.11,12.35739697]
[1726628968654,0.09436,132.14,132.1,27.49829697]
[1726628970378,0.09436,132.14,132.11,12.35739697]
[1726628970882,0.09436,132.14,132.1,15.1409]
[1726628974185,0.09436,132.14,132.1,27.49829697]
[1726628975365,0.09436,132.14,132.11,12.35739697]
[1726628975768,0.09436,132.14,132.1,15.1409]
[1726628976484,0.09436,132.14,132.1,27.49829697]
[1726628980686,0.09436,132.14,132.11,12.35739697]
[1726628982186,0.09436,132.14,132.12,12.35739697]
[1726628982394,0.09436,132.14,132.13,12.35739697]
[1726628990008,0.09436,132.14,132.13,12.48288697]
[1726628991102,0.09436,132.14,132.13,12.60837697]
[1726629000914,0.09436,132.14,132.13,32.60837697]
[1726629002104,0.09436,132.14,132.13,0.12549]
[1726629002599,0.09436,132.14,132.09,12.35739697]
[1726629002997,0.09436,132.14,132.1,12.35739697]
[1726629003586,0.09436,132.14,132.11,12.35739697]
[1726629003793,0.09436,132.14,132.12,12.35739697]
[1726629005123,0.09436,132.14,132.11,0.12549]
[1726629005294,0.09436,132.14,132.11,12.48288697]
[1726629006011,0.09436,132.14,132.12,12.35739697]
[1726629006394,0.09436,132.14,132.11,0.12549]
[1726629006607,0.09436,132.14,132.13,12.35739697]
[1726629006809,0.09436,132.14,132.13,12.48288697]
[1726629013411,0.09436,132.14,132.11,0.12549]
[1726629013611,0.09436,132.14,132.11,12.48288697]
[1726629013926,0.09436,132.14,132.11,12.35739697]
[1726629014912,0.1107464,132.17,132.11,12.35739697]
[1726629015217,0.1107464,132.17,132.1,20.12549]
[1726629015218,0.1107464,132.17,132.12,12.35739697]
[1726629017949,7.567,132.16,132.06,21.7055]
[1726629018150,7.567,132.16,132.08,12.35739697]
[1726629018824,15.9677,132.14,132.06,21.7055]
[1726629019027,15.9677,132.14,132.07,12.35739697]
[1726629020729,15.9677,132.14,132.08,12.48288697]
[1726629023840,15.9677,132.14,132.07,12.60837697]
[1726629025635,15.9677,132.14,132.1,12.35739697]
[1726629026749,15.9677,132.14,132.08,12.35739697]
[1726629027065,15.9677,132.14,132.09,12.35739697]
[1726629028457,15.9677,132.14,132.08,12.35739697]
[1726629033251,15.9677,132.14,132.09,12.35739697]
[1726629038045,15.9677,132.14,132.08,12.35739697]
[1726629038764,15.9677,132.14,132.09,12.35739697]
[1726629046551,23.776884,132.12,132.06,19.03604448]
[1726629046751,32.35899108,132.12,132.02,19.04329022]
[1726629047076,15.279,132.11,132.04,12.61378337]
[1726629047373,15.279,132.11,132.04,12.75942337]
[1726629047666,15.279,132.11,132.05,0.12549]
[1726629048556,15.279,132.11,132.04,12.75942337]
[1726629050366,23.776884,132.1,132.04,0.4020264]
[1726629052468,15.279,132.11,132.04,12.75942337]
[1726629053980,15.279,132.11,132.06,12.35739697]
[1726629057176,15.279,132.11,132.05,12.48288697]
[1726629062176,15.279,132.11,132.06,12.35739697]
[1726629062580,15.279,132.11,132.06,12.50303697]
[1726629065459,15.279,132.11,132.06,0.14564]